fUSD/lending_fUSD_20250219
["ID","MTS","AMOUNT","RATE_DAILY","PERIOD"]
[353691839,1739991087385,-660.75,0.00011695,2]
[353691840,1739991087394,-722.62,0.00011695,2]
[353691841,1739991087404,-856.89,0.00011695,2]
[353691842,1739991087415,-500.0,0.00011695,2]
[353691843,1739991087426,-1893.0,0.00011695,2]
[353691844,1739991087440,-529.4,0.00011695,2]
[353691845,1739991087451,-500.0,0.00011695,2]
[353691846,1739991087462,-500.0,0.00011695,2]
[353691847,1739991087475,-500.0,0.00011695,2]
[353691848,1739991087493,-1123.65,0.00011695,2]
[353691849,1739991087505,-500.0,0.00011695,2]
[353691850,1739991087517,-767.14,0.00011695,2]
[353691851,1739991087527,-500.0,0.00011695,2]
[353691852,1739991087537,-838.25,0.00011695,2]
[353691853,1739991087547,-500.0,0.00011695,2]
[353691854,1739991087557,-857.74,0.00011695,2]
[353691855,1739991087567,-702.31,0.00011695,2]
[353691856,1739991087577,-500.0,0.00011695,2]
[353691857,1739991087586,-1022.47,0.00011695,2]
[353691858,1739991087595,-766.99,0.00011695,2]
[353691859,1739991087605,-1271.18,0.00011695,2]
[353691860,1739991087615,-562.14,0.00011695,2]
[353691861,1739991087624,-1255.93,0.00011695,2]
[353691862,1739991087634,-735.72,0.00011695,2]
[353691863,1739991087644,-1023.77,0.00011695,2]
[353691864,1739991087654,-500.0,0.00011695,2]
[353691865,1739991087665,-741.16,0.00011695,2]
[353691866,1739991087675,-500.0,0.00011695,2]
[353691867,1739991087685,-500.0,0.00011695,2]
[353691868,1739991087695,-500.0,0.00011695,2]
[353691869,1739991087704,-1492.46,0.00011695,2]
[353691870,1739991087713,-1211.99,0.00011695,2]
[353691871,1739991087723,-908.55,0.00011695,2]
[353691872,1739991087733,-1115.3,0.00011695,2]
[353691873,1739991087743,-622.28,0.00011695,2]
[353691874,1739991087752,-725.41,0.00011695,2]
[353691875,1739991087762,-1312.13,0.00011695,2]
[353691876,1739991087771,-500.0,0.00011695,2]
[353691877,1739991087782,-500.0,0.00011695,2]
[353691878,1739991087791,-1135.89,0.00011695,2]
[353691879,1739991087801,-500.0,0.00011695,2]
[353691880,1739991087810,-626.24,0.00011695,2]
[353691881,1739991087820,-873.22,0.00011695,2]
[353691882,1739991087830,-828.64,0.00011695,2]
[353691883,1739991087841,-1067.13,0.00011695,2]
[353691884,1739991087851,-760.82,0.00011695,2]
[353691885,1739991087861,-959.81,0.00011695,2]
[353691886,1739991087871,-1130.2,0.00011695,2]
[353691887,1739991087881,-500.0,0.00011695,2]
[353691888,1739991087891,-621.03,0.00011695,2]
[353691889,1739991087901,-837.8,0.00011695,2]
[353691890,1739991087914,-500.0,0.00011695,2]
[353691891,1739991087924,-500.0,0.00011695,2]
[353691892,1739991087934,-524.85,0.00011695,2]
[353691893,1739991087943,-687.97,0.00011695,2]
[353691894,1739991087954,-763.25,0.00011695,2]
[353691895,1739991087964,-1453.26,0.00011695,2]
[353691896,1739991087974,-2178.41,0.00011695,2]
[353691897,1739991087984,-500.0,0.00011695,2]
[353691898,1739991087994,-2978.68,0.00011695,2]
[353691899,1739991088004,-867.64,0.00011695,2]
[353691900,1739991088014,-500.0,0.00011695,2]
[353691901,1739991088024,-500.0,0.00011695,2]
[353691902,1739991088034,-909.17,0.00011695,2]
[353691903,1739991088044,-500.0,0.00011695,2]
[353691904,1739991088054,-659.34,0.00011695,2]
[353691905,1739991088064,-500.0,0.00011695,2]
[353691906,1739991088074,-944.41,0.00011695,2]
[353691907,1739991088084,-1667.3,0.00011695,2]
[353691908,1739991088094,-1335.65,0.00011695,2]
[353691909,1739991088104,-1536.77,0.00011695,2]
[353691910,1739991088114,-500.0,0.00011695,2]
[353691911,1739991088123,-2300.26,0.00011695,2]
[353691912,1739991088134,-1054.96,0.00011695,2]
[353691913,1739991088144,-3967.01,0.00011695,2]
[353691914,1739991088154,-2151.49,0.00011695,2]
[353691915,1739991088165,-500.0,0.00011695,2]
[353691916,1739991088175,-1026.98,0.00011695,2]
[353691917,1739991088186,-1717.95,0.00011695,2]
[353691918,1739991088196,-723.0,0.00011695,2]
[353691919,1739991088206,-858.82,0.00011695,2]
[353691920,1739991088215,-736.71,0.00011695,2]
[353691921,1739991088225,-500.0,0.00011695,2]
[353691922,1739991088235,-731.07,0.00011695,2]
[353691923,1739991088246,-808.06,0.00011695,2]
[353691924,1739991088256,-500.0,0.00011695,2]
[353691925,1739991088268,-500.0,0.00011695,2]
[353691926,1739991088278,-1003.52,0.00011695,2]
[353691927,1739991088288,-500.0,0.00011695,2]
[353691928,1739991088298,-1216.45,0.00011695,2]
[353691929,1739991088308,-897.65,0.00011695,2]
[353691930,1739991088318,-969.77,0.00011695,2]
[353691931,1739991088327,-1228.25,0.00011695,2]
[353691932,1739991088337,-2264.91,0.00011695,2]
[353691933,1739991088346,-597.7,0.00011695,2]
[353691934,1739991088356,-500.0,0.00011695,2]
[353691935,1739991088366,-1031.26,0.00011695,2]
[353691936,1739991088376,-813.49,0.00011695,2]
[353691937,1739991088385,-500.0,0.00011695,2]
[353691938,1739991088395,-943.59,0.00011695,2]
[353691939,1739991088405,-807.9,0.00011695,2]
[353691940,1739991088416,-952.43,0.00011695,2]
[353691941,1739991088426,-1249.19,0.00011695,2]
[353691942,1739991088439,-1931.39,0.00011695,2]
[353691943,1739991088450,-699.69,0.00011695,2]
[353691944,1739991088460,-736.37,0.00011695,2]
[353691945,1739991088470,-619.62939514,0.00011695,2]
[353691946,1739991088480,-1349.59,0.00011695,2]
[353691947,1739991088490,-2136.43,0.00011695,2]
[353691948,1739991088499,-1308.13,0.00011695,2]
[353691949,1739991088509,-763.21,0.00011695,2]
[353691950,1739991088520,-500.0,0.00011695,2]
[353691951,1739991088530,-676.6,0.00011695,2]
[353691952,1739991088540,-1669.19,0.00011695,2]
[353691953,1739991088551,-2496.14,0.00011695,2]
[353691954,1739991088561,-838.79,0.00011695,2]
[353691955,1739991088571,-500.0,0.00011695,2]
[353691956,1739991088580,-844.7,0.00011695,2]
[353691957,1739991088590,-500.0,0.00011695,2]
[353691958,1739991088600,-1038.95,0.00011695,2]
[353691959,1739991088609,-643.34,0.00011695,2]
[353691960,1739991088619,-862.23,0.00011695,2]
[353691961,1739991088629,-1682.85,0.00011695,2]
[353691962,1739991088638,-972.98,0.00011695,2]
[353691963,1739991088648,-1170.77,0.00011695,2]
[353691964,1739991088657,-1036.38,0.00011695,2]
[353691965,1739991088738,-665.65,0.00011695,2]
[353691966,1739991088748,-500.0,0.00011695,2]
[353691967,1739991088757,-500.0,0.00011695,2]
[353691968,1739991088766,-816.32,0.00011695,2]
[353691969,1739991088775,-500.0,0.00011695,2]
[353691970,1739991088785,-1472.21,0.00011695,2]
[353691971,1739991088795,-1143.91,0.00011695,2]
[353691972,1739991088804,-7684.69,0.00011695,2]
[353691973,1739991088814,-500.0,0.00011695,2]
[353691974,1739991088823,-500.0,0.00011695,2]
[353691975,1739991088833,-1239.55,0.00011695,2]
[353691976,1739991088842,-1609.82,0.00011695,2]
[353691977,1739991088852,-694.56,0.00011695,2]
[353691978,1739991088861,-1000.0,0.00011695,2]
[353691979,1739991088871,-500.0,0.00011695,2]
[353691980,1739991088880,-677.2,0.00011695,2]
[353691981,1739991088892,-1545.54,0.00011695,2]
[353691982,1739991088902,-1288.85,0.00011695,2]
[353691983,1739991088912,-1349.76,0.00011695,2]
[353691984,1739991088921,-591.57,0.00011695,2]
[353691985,1739991088931,-500.0,0.00011695,2]
[353691986,1739991088941,-500.0,0.00011695,2]
[353691987,1739991088952,-1045.64,0.00011695,2]
[353691988,1739991088962,-544.71,0.00011695,2]
[353691989,1739991088972,-515.07,0.00011695,2]
[353691990,1739991088982,-500.0,0.00011695,2]
[353691991,1739991088993,-500.0,0.00011695,2]
[353691992,1739991089003,-864.21,0.00011695,2]
[353691993,1739991089013,-1217.73,0.00011695,2]
[353691994,1739991089023,-500.0,0.00011695,2]
[353691995,1739991089033,-1242.44,0.00011695,2]
[353691996,1739991089042,-608.9,0.00011695,2]
[353691997,1739991089053,-500.0,0.00011695,2]
[353691998,1739991089062,-500.0,0.00011695,2]
[353691999,1739991089072,-1333.33,0.00011695,2]
[353692000,1739991089083,-2099.28,0.00011695,2]
[353692001,1739991089092,-646.88,0.00011695,2]
[353692002,1739991089102,-1098.74,0.00011695,2]
[353692003,1739991089112,-631.78,0.00011695,2]
[353692004,1739991089121,-1305.78,0.00011695,2]
[353692005,1739991089130,-591.42,0.00011695,2]
[353692006,1739991089140,-814.94,0.00011695,2]
[353692007,1739991089149,-500.0,0.00011695,2]
[353692008,1739991089158,-500.0,0.00011695,2]
[353692009,1739991089170,-1698.82,0.00011695,2]
[353692010,1739991089179,-500.0,0.00011695,2]
[353692011,1739991089189,-1656.29,0.00011695,2]
[353692012,1739991089198,-958.07,0.00011695,2]
[353692013,1739991089208,-1140.78,0.00011695,2]
[353692014,1739991089217,-1343.79,0.00011695,2]
[353692015,1739991089228,-500.0,0.00011695,2]
[353692016,1739991089239,-500.0,0.00011695,2]
[353692017,1739991089248,-3616.83,0.00011695,2]
[353692018,1739991089258,-1109.34,0.00011695,2]
[353692019,1739991089268,-940.17,0.00011695,2]
[353692020,1739991089279,-500.0,0.00011695,2]
[353692021,1739991089288,-1068.94,0.00011695,2]
[353692022,1739991089298,-500.0,0.00011695,2]
[353692023,1739991089308,-1192.02,0.00011695,2]
[353692024,1739991089319,-1134.66,0.00011695,2]
[353692025,1739991089329,-500.0,0.00011695,2]
[353692026,1739991089339,-500.0,0.00011695,2]
[353692027,1739991089349,-1387.53,0.00011695,2]
[353692028,1739991089360,-500.0,0.00011695,2]
[353692029,1739991089370,-500.0,0.00011695,2]
[353692030,1739991089379,-525.63,0.00011695,2]
[353692031,1739991089390,-500.0,0.00011695,2]
[353692032,1739991089399,-1867.51,0.00011695,2]
[353692033,1739991089408,-1262.86,0.00011695,2]
[353692034,1739991089419,-180.896505,0.00011695,2]
[353692035,1739991089428,-1225.46,0.00011695,2]
[353692036,1739991089438,-500.0,0.00011695,2]
[353692037,1739991089451,-1283.85,0.00011695,2]
[353692038,1739991089461,-1033.15,0.00011695,2]
[353692039,1739991089471,-1890.5,0.00011695,2]
[353692040,1739991089481,-500.0,0.00011695,2]
[353692041,1739991089495,-1247.13,0.00011695,2]
[353692042,1739991089504,-500.0,0.00011695,2]
[353692043,1739991089514,-953.52,0.00011695,2]
[353692044,1739991089525,-701.13,0.00011695,2]
[353692045,1739991089534,-606.51,0.00011695,2]
[353692046,1739991089543,-500.0,0.00011695,2]
[353692047,1739991089553,-500.0,0.00011695,2]
[353692048,1739991089563,-837.99,0.00011695,2]
[353692049,1739991089572,-852.55,0.00011695,2]
[353692050,1739991089582,-1040.5,0.00011695,2]
[353692051,1739991089591,-626.51,0.00011695,2]
[353692052,1739991089600,-500.0,0.00011695,2]
[353692053,1739991089610,-500.0,0.00011695,2]
[353692054,1739991089619,-500.0,0.00011695,2]
[353692055,1739991089629,-1225.45,0.00011695,2]
[353692056,1739991089639,-530.54324938,0.00011696,2]
[353692057,1739991089649,-500.0,0.00011696,2]
[353692058,1739991089658,-711.12,0.00011696,2]
[353692059,1739991089667,-500.0,0.00011696,2]
[353692060,1739991089678,-500.0,0.00011696,2]
[353692061,1739991089687,-500.0,0.00011696,2]
[353692062,1739991089696,-567.75,0.00011696,2]
[353692063,1739991089706,-774.79,0.00011696,2]
[353692064,1739991089715,-648.92,0.00011696,2]
[353692065,1739991089725,-500.0,0.00011696,2]
[353692066,1739991089734,-500.0,0.00011696,2]
[353692067,1739991089743,-500.0,0.00011696,2]
[353692068,1739991089752,-500.0,0.00011696,2]
[353692069,1739991089761,-939.76,0.00011696,2]
[353692070,1739991089770,-500.0,0.00011696,2]
[353692071,1739991089779,-726.31,0.00011696,2]
[353692072,1739991089788,-527.6,0.00011696,2]
[353692073,1739991089798,-637.14,0.00011696,2]
[353692074,1739991089807,-501.4,0.00011696,2]
[353692075,1739991089817,-550.13,0.00011696,2]
[353692076,1739991089827,-500.0,0.00011696,2]
[353692077,1739991089837,-605.64,0.00011696,2]
[353692078,1739991089848,-500.0,0.00011696,2]
[353692079,1739991089857,-500.0,0.00011696,2]
[353692080,1739991089867,-670.06,0.00011696,2]
[353692081,1739991089876,-500.0,0.00011696,2]
[353692082,1739991089886,-500.0,0.00011696,2]
[353692083,1739991089895,-500.0,0.00011696,2]
[353692084,1739991089904,-741.15,0.00011696,2]
[353692085,1739991089915,-500.0,0.00011696,2]
[353692086,1739991089924,-917.52,0.00011696,2]
[353692087,1739991089933,-653.65,0.00011696,2]
[353692088,1739991089942,-500.0,0.00011696,2]
[353692089,1739991089951,-500.0,0.00011696,2]
[353692090,1739991089961,-500.0,0.00011696,2]
[353692091,1739991089971,-575.12,0.00011696,2]
[353692092,1739991089980,-500.0,0.00011696,2]
[353692093,1739991089990,-1008.4,0.00011696,2]
[353692094,1739991090000,-648.67,0.00011696,2]
[353692095,1739991090011,-500.0,0.00011696,2]
[353692096,1739991090020,-709.82,0.00011696,2]
[353692097,1739991090030,-500.0,0.00011696,2]
[353692098,1739991090040,-500.0,0.00011696,2]
[353692099,1739991090050,-759.69,0.00011696,2]
[353692100,1739991090060,-939.45,0.00011696,2]
[353692101,1739991090070,-934.24,0.00011696,2]
[353692102,1739991090080,-1565.74,0.00011696,2]
[353692103,1739991090089,-500.0,0.00011696,2]
[353692104,1739991090099,-779.39,0.00011696,2]
[353692105,1739991090109,-1114.74,0.00011696,2]
[353692106,1739991090119,-500.0,0.00011696,2]
[353692107,1739991090127,-500.0,0.00011696,2]
[353692108,1739991090137,-500.0,0.00011696,2]
[353692109,1739991090146,-1307.87,0.00011696,2]
[353692110,1739991090156,-500.0,0.00011696,2]
[353692111,1739991090166,-1563.31,0.00011696,2]
[353692112,1739991090176,-500.0,0.00011696,2]
[353692113,1739991090185,-626.84,0.00011696,2]
[353692114,1739991090196,-371.33859709,0.00011696,2]
[353692115,1739991090206,-500.0,0.00011696,2]
[353692116,1739991090215,-1098.62,0.00011696,2]
[353692117,1739991090225,-602.42,0.00011696,2]
[353692118,1739991090234,-1563.53,0.00011696,2]
[353692119,1739991090244,-500.0,0.00011696,2]
[353692120,1739991090254,-1617.89,0.00011696,2]
[353692121,1739991090265,-568.32,0.00011696,2]
[353692122,1739991090275,-500.0,0.00011696,2]
[353692123,1739991090286,-1902.45,0.00011696,2]
[353692124,1739991090295,-500.0,0.00011696,2]
[353692125,1739991090304,-997.72,0.00011696,2]
[353692126,1739991090314,-1224.85,0.00011696,2]
[353692127,1739991090323,-1076.75,0.00011696,2]
[353692128,1739991090333,-1287.1,0.00011696,2]
[353692129,1739991090342,-507.43,0.00011696,2]
[353692130,1739991090351,-1834.21,0.00011696,2]
[353692131,1739991090361,-1131.11,0.00011696,2]
[353692132,1739991090370,-500.0,0.00011696,2]
[353692133,1739991090380,-1818.6,0.00011696,2]
[353692134,1739991090390,-967.39,0.00011696,2]
[353692135,1739991090399,-613.64,0.00011696,2]
[353692136,1739991090409,-500.0,0.00011696,2]
[353692137,1739991090421,-1954.75,0.00011696,2]
[353692138,1739991090430,-500.0,0.00011696,2]
[353692139,1739991090442,-1010.26,0.00011696,2]
[353692140,1739991090456,-500.0,0.00011696,2]
[353692141,1739991090466,-651.03,0.00011696,2]
[353692142,1739991090475,-825.62,0.00011696,2]
[353692143,1739991090486,-500.0,0.00011696,2]
[353692144,1739991090495,-842.88,0.00011696,2]
[353692145,1739991090505,-500.0,0.00011696,2]
[353692146,1739991090514,-373.95430684,0.00011696,2]
[353692147,1739991090524,-500.0,0.00011696,2]
[353692148,1739991090534,-500.0,0.00011696,2]
[353692149,1739991090544,-1110.11,0.00011696,2]
[353692150,1739991090554,-774.36,0.00011696,2]
[353692151,1739991090564,-811.92,0.00011696,2]
[353692152,1739991090574,-1151.56,0.00011696,2]
[353692153,1739991090584,-500.0,0.00011696,2]
[353692154,1739991090594,-500.0,0.00011696,2]
[353692155,1739991090604,-1042.18,0.00011696,2]
[353692156,1739991090614,-500.0,0.00011696,2]
[353692157,1739991090624,-534.83,0.00011696,2]
[353692158,1739991090633,-500.0,0.00011696,2]
[353692159,1739991090643,-619.91,0.00011696,2]
[353692160,1739991090652,-533.51,0.00011696,2]
[353692161,1739991090663,-500.0,0.00011696,2]
[353692162,1739991090672,-581.26,0.00011696,2]
[353692163,1739991090682,-500.0,0.00011696,2]
[353692164,1739991090692,-500.0,0.00011696,2]
[353692165,1739991090702,-500.0,0.00011696,2]
[353692166,1739991090712,-500.0,0.00011696,2]
[353692167,1739991090722,-500.0,0.00011696,2]
[353692168,1739991090732,-500.0,0.00011696,2]
[353692169,1739991090742,-500.0,0.00011696,2]
[353692170,1739991090752,-500.0,0.00011696,2]
[353692171,1739991090762,-849.02,0.00011696,2]
[353692172,1739991090772,-563.08,0.00011696,2]
[353692173,1739991090782,-758.16,0.00011696,2]
[353692174,1739991090791,-500.0,0.00011696,2]
[353692175,1739991090801,-500.0,0.00011696,2]
[353692176,1739991090811,-310.15,0.00011698,2]
[353692177,1739991090821,-1285.43,0.00011776,2]
[353692178,1739991090831,-2055.78,0.00011776,2]
[353692179,1739991090841,-1176.26,0.00011776,2]
[353692180,1739991090851,-1598.02,0.00011776,2]
[353692181,1739991090861,-1177.64,0.00011776,2]
[353692182,1739991090871,-1728.13,0.00011776,2]
[353692183,1739991090880,-1464.57,0.00011776,2]
[353692184,1739991090890,-988.1,0.00011776,2]
[353692185,1739991090900,-1523.71,0.00011776,2]
[353692186,1739991090910,-1697.79,0.00011776,2]
[353692187,1739991090920,-914.84,0.00011776,2]
[353692188,1739991090930,-1345.01,0.00011776,2]
[353692189,1739991090939,-1899.5,0.00011776,2]
[353692190,1739991090949,-835.97,0.00011776,2]
[353692191,1739991090959,-1253.59,0.00011776,2]
[353692192,1739991090968,-676.35,0.00011776,2]
[353692193,1739991090978,-1199.2,0.00011776,2]
[353692194,1739991090988,-1444.06,0.00011776,2]
[353692195,1739991090998,-1165.51,0.00011776,2]
[353692196,1739991091007,-1110.09,0.00011776,2]
[353692197,1739991091017,-955.77,0.00011776,2]
[353692198,1739991091027,-1702.36,0.00011776,2]
[353692199,1739991091036,-500.0,0.00011776,2]
[353692200,1739991091046,-1068.07,0.00011776,2]
[353692201,1739991091056,-541.29,0.00011776,2]
[353692202,1739991091066,-1380.32,0.00011776,2]
[353692203,1739991091076,-6558.48415984,0.00011777,2]
[353692204,1739991091085,-500.0,0.00011777,2]
[353692205,1739991091093,-564.03,0.00011777,2]
[353692206,1739991091103,-500.0,0.00011777,2]
[353692207,1739991091114,-500.0,0.00011777,2]
[353692208,1739991091124,-958.09,0.00011777,2]
[353692209,1739991091134,-151.0,0.00011777,2]
[353692210,1739991091144,-500.0,0.00011777,2]
[353692211,1739991091154,-638.44,0.00011777,2]
[353692212,1739991091164,-500.0,0.00011777,2]
[353692213,1739991091174,-1305.17,0.00011777,2]
[353692214,1739991091184,-500.0,0.00011777,2]
[353692215,1739991091193,-500.0,0.00011777,2]
[353692216,1739991091203,-335.282174,0.00011777,2]
[353692217,1739991091212,-1013.4,0.00011777,2]
[353692218,1739991091222,-445.363227,0.00011777,2]
[353692219,1739991091232,-800.82,0.00011777,2]
[353692220,1739991091243,-566.24,0.00011777,2]
[353692221,1739991091253,-500.0,0.00011777,2]
[353692222,1739991091263,-1291.22,0.00011777,2]
[353692223,1739991091273,-705.7,0.00011777,2]
[353692224,1739991091282,-1007.94,0.00011777,2]
[353692225,1739991091292,-500.0,0.00011777,2]
[353692226,1739991091302,-500.0,0.00011777,2]
[353692227,1739991091312,-500.0,0.00011777,2]
[353692228,1739991091323,-1100.17,0.00011777,2]
[353692229,1739991091333,-1164.92,0.00011777,2]
[353692230,1739991091343,-1009.77,0.00011777,2]
[353692231,1739991091353,-1086.24,0.00011777,2]
[353692232,1739991091363,-1103.11,0.00011777,2]
[353692233,1739991091374,-500.0,0.00011777,2]
[353692234,1739991091384,-500.0,0.00011777,2]
[353692235,1739991091394,-689.09,0.00011777,2]
[353692236,1739991091404,-500.0,0.00011777,2]
[353692237,1739991091416,-1109.15,0.00011777,2]
[353692238,1739991091426,-752.25,0.00011777,2]
[353692239,1739991091436,-712.53,0.00011777,2]
[353692240,1739991091449,-500.0,0.00011777,2]
[353692241,1739991091459,-844.15,0.00011777,2]
[353692242,1739991091469,-1035.94,0.00011777,2]
[353692243,1739991091479,-1177.99,0.00011777,2]
[353692244,1739991091490,-970.06,0.00011777,2]
[353692245,1739991091500,-842.16,0.00011777,2]
[353692246,1739991091510,-1231.95,0.00011777,2]
[353692247,1739991091521,-833.68,0.00011777,2]
[353692248,1739991091533,-1384.51,0.00011777,2]
[353692249,1739991091543,-992.43,0.00011777,2]
[353692250,1739991091553,-700.4,0.00011777,2]
[353692251,1739991091563,-896.41,0.00011777,2]
[353692252,1739991091573,-500.0,0.00011777,2]
[353692253,1739991091583,-835.28,0.00011777,2]
[353692254,1739991091593,-730.1,0.00011777,2]
[353692255,1739991091603,-638.47,0.00011777,2]
[353692256,1739991091613,-722.91,0.00011777,2]
[353692257,1739991091622,-700.98,0.00011777,2]
[353692258,1739991091632,-500.0,0.00011777,2]
[353692259,1739991091644,-887.61,0.00011777,2]
[353692260,1739991091654,-1299.23,0.00011777,2]
[353692261,1739991091664,-537.11,0.00011777,2]
[353692262,1739991091674,-1023.26,0.00011777,2]
[353692263,1739991091683,-176.66900077,0.00011777,2]
[353692264,1739991091693,-500.0,0.00011777,2]
[353692265,1739991091703,-1193.06,0.00011777,2]
[353692266,1739991091713,-809.28,0.00011777,2]
[353692267,1739991091723,-569.98,0.00011777,2]
[353692268,1739991091733,-947.29,0.00011777,2]
[353692269,1739991091743,-738.85,0.00011777,2]
[353692270,1739991091753,-500.0,0.00011777,2]
[353692271,1739991091763,-819.36,0.00011777,2]
[353692272,1739991091773,-504.01,0.00011777,2]
[353692273,1739991091784,-841.31,0.00011777,2]
[353692274,1739991091794,-716.57,0.00011777,2]
[353692275,1739991091804,-1059.78,0.00011777,2]
[353692276,1739991091814,-685.17,0.00011777,2]
[353692277,1739991091824,-948.49,0.00011777,2]
[353692278,1739991091834,-1210.93,0.00011777,2]
[353692279,1739991091843,-1232.61,0.00011777,2]
[353692280,1739991091853,-660.75,0.00011777,2]
[353692281,1739991091863,-722.62,0.00011777,2]
[353692282,1739991091873,-856.89,0.00011777,2]
[353692283,1739991091883,-500.0,0.00011777,2]
[353692284,1739991091893,-529.4,0.00011777,2]
[353692285,1739991091902,-500.0,0.00011777,2]
[353692286,1739991091912,-500.0,0.00011777,2]
[353692287,1739991091923,-500.0,0.00011777,2]
[353692288,1739991091932,-1123.65,0.00011777,2]
[353692289,1739991091941,-500.0,0.00011777,2]
[353692290,1739991091951,-767.14,0.00011777,2]
[353692291,1739991091961,-200.3355082,0.00011777,2]
[353692292,1739991091971,-838.25,0.00011777,2]
[353692293,1739991091982,-254.05642594,0.00011777,2]
[353692294,1739991091991,-857.74,0.00011777,2]
[353692295,1739991092001,-702.31,0.00011777,2]
[353692296,1739991092010,-500.0,0.00011777,2]
[353692297,1739991092020,-1022.47,0.00011777,2]
[353692298,1739991092030,-766.99,0.00011777,2]
[353692299,1739991092039,-1271.18,0.00011777,2]
[353692300,1739991092049,-562.14,0.00011777,2]
[353692301,1739991092059,-1255.93,0.00011777,2]
[353692302,1739991092069,-735.72,0.00011777,2]
[353692303,1739991092078,-1023.77,0.00011777,2]
[353692304,1739991092088,-500.0,0.00011777,2]
[353692305,1739991092098,-741.16,0.00011777,2]
[353692306,1739991092108,-500.0,0.00011777,2]
[353692307,1739991092118,-500.0,0.00011777,2]
[353692308,1739991092128,-500.0,0.00011777,2]
[353692309,1739991092138,-1492.46,0.00011777,2]
[353692310,1739991092148,-1211.99,0.00011777,2]
[353692311,1739991092158,-908.55,0.00011777,2]
[353692312,1739991092170,-1115.3,0.00011777,2]
[353692313,1739991092180,-622.28,0.00011777,2]
[353692314,1739991092190,-725.41,0.00011777,2]
[353692315,1739991092200,-1312.13,0.00011777,2]
[353692316,1739991092209,-500.0,0.00011777,2]
[353692317,1739991092220,-500.0,0.00011777,2]
[353692318,1739991092230,-1135.89,0.00011777,2]
[353692319,1739991092239,-500.0,0.00011777,2]
[353692320,1739991092249,-626.24,0.00011777,2]
[353692321,1739991092259,-873.22,0.00011777,2]
[353692322,1739991092269,-828.64,0.00011777,2]
[353692323,1739991092280,-1067.13,0.00011777,2]
[353692324,1739991092290,-760.82,0.00011777,2]
[353692325,1739991092300,-959.81,0.00011777,2]
[353692326,1739991092310,-1130.2,0.00011777,2]
[353692327,1739991092321,-500.0,0.00011777,2]
[353692328,1739991092331,-621.03,0.00011777,2]
[353692329,1739991092342,-837.8,0.00011777,2]
[353692330,1739991092353,-500.0,0.00011777,2]
[353692331,1739991092364,-500.0,0.00011777,2]
[353692332,1739991092375,-524.85,0.00011777,2]
[353692333,1739991092386,-687.97,0.00011777,2]
[353692334,1739991092396,-763.25,0.00011777,2]
[353692335,1739991092406,-1453.26,0.00011777,2]
[353692336,1739991092419,-2178.41,0.00011777,2]
[353692337,1739991092429,-500.0,0.00011777,2]
[353692338,1739991092439,-2978.68,0.00011777,2]